Cogmind - Beta 17 @@@ ROGUE MODE // 2026.08.06 @ 16:51:38 Player: Floof Enjoyer Result: Self-destructed Performance ------------- Evolutions (2) 1000 Regions Visited (4) 800 Robots Destroyed (32) 160 Value Destroyed (820) 820 Prototype IDs (0) 0 Alien Tech Used (0) 0 Bonus (0) 0 TOTAL SCORE: 2780 Bonus ------- None Cogmind --------- Core Integrity 392/550 Matter 48/300 Energy 100/100 System Corruption 0% Temperature Cool (9) Movement Rolling (90) Location -8/Materials Parts ------- > --- POWER (2) -------- (None) > --- PROPULSION (4) --- Compact Wheel > --- UTILITY (3) ------ Improved Terrain Scanner Improved Targeting Computer > --- WEAPON (2) ------- Assault Cannon > --- INVENTORY (5) ---- Advanced ECM Suite Advanced ECM Suite EM Pulse Cannon Assault Cannon Assault Cannon Peak State ------------ > --- POWER ------------ Ion Engine Light Ion Engine > --- PROPULSION ------- Xenon Bombardment Thruster Xenon Bombardment Thruster Xenon Bombardment Thruster Xenon Bombardment Thruster > --- UTILITY ---------- Improved Terrain Scanner Improved Targeting Computer Improved Weapon Shielding > --- WEAPON ----------- Assault Cannon Assault Cannon > --- INVENTORY -------- Wheel EM Pulse Cannon Assault Cannon Assault Cannon [Rating: 33] Favorites ----------- Power Light Ion Engine Engine Light Ion Engine Propulsion Compact Wheel Wheel Compact Wheel Flight Unit Xenon Bombardment Thruster Utility Improved Weapon Shielding Device Improved Terrain Scanner Processor Improved Targeting Computer Protection Improved Weapon Shielding Weapon Assault Cannon Energy Gun Small Laser Ballistic Cannon Assault Cannon Build | -11 -10 -9 -9 -8 ------- Run | Yrd Mat Mat Min Mat Slots Evolved 4 | . . 2 . 2 Power 1 | . . . . 1 Propulsion 2 | . . 2 . . Utility 1 | . . . . 1 Weapon . | . . . . . Parts Attached 27 | 6 2 9 2 8 Power 5 | 1 1 1 1 1 Engine 5 | 1 1 1 1 1 Core . | . . . . . Reactor . | . . . . . Propulsion 12 | 2 1 3 1 5 Treads . | . . . . . Leg . | . . . . . Wheel 8 | 2 1 3 1 1 Hover . | . . . . . Flight 4 | . . . . 4 Utility 6 | 1 . 3 . 2 Device 1 | 1 . . . . Storage . | . . . . . Processor 1 | . . 1 . . Hackware . | . . . . . Protection 4 | . . 2 . 2 Artifact . | . . . . . Weapon 4 | 2 . 2 . . Energy Gun 2 | 2 . . . . Energy Cannon . | . . . . . Ballistic Gun . | . . . . . Ballistic Cannon 2 | . . 2 . . Launcher . | . . . . . Special Weapon . | . . . . . Impact Weapon . | . . . . . Slashing Weapon . | . . . . . Piercing Weapon . | . . . . . Special Melee Weapon . | . . . . . Unidentified Prototypes . | . . . . . Parts Lost 11 | . 1 2 1 7 Power 3 | . 1 . . 2 Propulsion 5 | . . 1 1 3 Utility 2 | . . 1 . 1 Weapon 1 | . . . . 1 Highest Loss Streak 7 | . 1 2 1 7 To Critical Strikes 1 | . . . . 1 Average Backups 3 | 1 2 4 5 4 Power . | . 1 . . . Propulsion . | . . . . . Utility 1 | . . 1 3 1 Weapon 1 | . 1 1 2 2 Tool/Special . | . . . . . Unused Backups 7 | . . 2 . 5 Power 1 | . . 1 . . Propulsion . | . . . . . Utility 2 | . . . . 2 Weapon 4 | . . 1 . 3 Tool/Special . | . . . . . Average Slot Usage (%) 88 | . 82 81 97 91 Engine 12 | . 11 11 11 15 Wheel 31 | . 28 27 41 29 Device 7 | . 14 7 . 9 Processor 6 | . . 3 11 9 Protection 8 | . . 10 11 8 Energy Gun 4 | . 28 1 . . Ballistic Cannon 16 | . . 20 22 17 Peak Build Rating 33 | 8 8 17 17 33 Average Rating 15 | 4 7 15 16 20 On Entrance 10 | . 8 8 17 17 Avg Prop Armor Cover (%) . | . . . . . Naked Turns . | . . . . . Heaviest Build 21 | 7 7 16 15 21 Greatest Support 52 | 32 32 52 52 52 Greatest Overweight (x) 6 | . . . . 6 Average Overweight (x) . | . . . . . Largest Inventory Capacity 5 | 5 5 5 5 5 Average Capacity 5 | 5 5 5 5 5 Most Carried 5 | 3 3 5 5 5 Average Carried 3 | 1 2 4 5 4 Final Capacity 5 | 5 5 5 5 5 Final Carried 5 | 2 2 5 5 5 Class Distribution -------------------- 66% | Mutant 33% | Scavenger-Mutant Dominant Class ---------------- Mutant | -10/Materials Mutant | -9/Materials Scavenger-Mutant | -9/Mines Scavenger-Mutant | -8/Materials Resources | -11 -10 -9 -9 -8 ----------- Run | Yrd Mat Mat Min Mat Matter Collected 793 | 210 55 209 125 194 Remotely . | . . . . . Salvage Created 882 | 116 195 240 45 286 Parts 67 | 12 8 18 9 20 Haulers Intercepted . | . . . . . Recyclers Shooed . | . . . . . Parts Field Recycled . | . . . . . Retrieved Matter . | . . . . . Parts Self-Destructed . | . . . . . Prevented . | . . . . . Parts Restored . | . . . . . Kills | -11 -10 -9 -9 -8 ------- Run | Yrd Mat Mat Min Mat Combat Hostiles Destroyed 22 | . 3 4 6 9 Guns 3 | . 3 . . . Cannons 17 | . . 4 4 9 AOE 2 | . . . 2 . Classes Destroyed 10 | 3 1 1 1 4 Worker 2 | 1 . . 1 . Builder 1 | . . . . 1 Tunneler 3 | 2 . 1 . . Recycler 3 | 1 1 1 . . Watcher 1 | . . . . 1 Swarmer 8 | . . . 6 2 Grunt 9 | . 3 1 . 5 Brawler 1 | . . . . 1 Duelist 1 | . . . . 1 Sentry 3 | . . 3 . . Best Kill Streak 7 | 2 3 2 6 7 Combat Bots Only 6 | . 2 2 6 6 Max Kills in Single Turn 2 | 1 1 1 2 2 Gunslinging . | . . . . . Exploded 2 | . . . 2 . Melee . | . . . . . Uniques/NPCs Destroyed . | . . . . . Combat | -11 -10 -9 -9 -8 -------- Run | Yrd Mat Mat Min Mat Hostile Shots Fired 150 | . 18 29 22 81 Missed 39 | . 4 10 4 21 Hits 111 | . 14 19 18 60 Projectile 111 | . 14 19 18 60 Critical Strikes 9 | . . 3 1 5 Actively Blocked 4 | . . 2 1 1 Damage Taken 1258 | . 154 250 140 714 Core 269 | . 34 27 50 158 Absorbed by Shields . | . . . . . Redirected to Shielding 251 | . . 101 30 120 Core Remaining (%) 88 | 100 86 . 80 . Volleys Fired 82 | 11 11 15 11 34 Largest 2 | 2 2 2 2 2 Hottest 90 | 90 90 74 74 74 Shots Fired 157 | 21 22 30 22 62 Gun 43 | 21 22 . . . Cannon 114 | . . 30 22 62 Launcher . | . . . . . Special . | . . . . . Kinetic 114 | . . 30 22 62 Thermal 43 | 21 22 . . . Explosive . | . . . . . Electromagnetic . | . . . . . Robot Hit Streak 12 | 5 11 3 2 12 Robot Miss Streak 4 | 1 1 3 4 3 Penetration Max . | . . . . . Secondary Targets . | . . . . . Shots Hit Robots 95 | 13 17 14 8 43 Core Hits 43 | 5 9 6 7 16 Critical Kills . | . . . . . Critical Parts Destroyed . | . . . . . Critical Strikes 4 | 1 . 1 1 1 Burn 1 | 1 . . . . Blast 3 | . . 1 1 1 Melee Attacks . | . . . . . Impact . | . . . . . Slashing . | . . . . . Piercing . | . . . . . Sneak Attacks . | . . . . . Combat Hostiles . | . . . . . Follow-up Attacks . | . . . . . Damage Inflicted 2328 | 154 210 461 381 1122 Guns 364 | 154 210 . . . Cannons 1779 | . . 461 196 1122 Explosions 185 | . . . 185 . Melee . | . . . . . Ramming . | . . . . . Kinetic 1779 | . . 461 196 1122 Thermal 549 | 154 210 . 185 . Explosive . | . . . . . Electromagnetic . | . . . . . Impact . | . . . . . Slashing . | . . . . . Piercing . | . . . . . Highest Corruption . | . . . . . Average Corruption . | . . . . . Corruption Purged . | . . . . . Corruption Blocked . | . . . . . Overload Shots . | . . . . . Overflow Damage 32 | . . 7 12 13 Projectiles 32 | . . 7 12 13 Explosions . | . . . . . Melee . | . . . . . Knockbacks 13 | . . 5 2 6 Impact . | . . . . . Kinetic 13 | . . 5 2 6 Secondary . | . . . . . Self-Inflicted Damage . | . . . . . Shots . | . . . . . Rammed . | . . . . . Targets Rammed . | . . . . . Kicked . | . . . . . Crushed . | . . . . . Highest Temperature 177 | 120 160 114 12 177 Average Temperature 59 | 52 62 49 5 84 Received Heat Transfer 471 | . 84 135 . 252 Siege Activations . | . . . . . Martial Activations . | . . . . . Shielding Activations . | . . . . . Robots Disrupted . | . . . . . Combat Hostiles . | . . . . . Robots Corrupted . | . . . . . Combat Hostiles . | . . . . . Parts Fried . | . . . . . Impact Corruptions . | . . . . . Robots Melted . | . . . . . Combat Hostiles . | . . . . . Parts Melted 3 | . 3 . . . Heat Transferred 1303 | 495 558 . 250 . Parts Sabotaged . | . . . . . Parts Stolen . | . . . . . Parts Stripped . | . . . . . Power Chain Reactions . | . . . . . Alert | -11 -10 -9 -9 -8 ------- Run | Yrd Mat Mat Min Mat Maximum Alert Level . | . . . . . Low Security (%) 100 | 100 100 100 100 100 Level 1 . | . . . . . Level 2 . | . . . . . Level 3 . | . . . . . Level 4 . | . . . . . Level 5 . | . . . . . High Security . | . . . . . Max Security . | . . . . . Peak Influence 180 | 5 50 46 180 167 Initial 37 | . 3 10 9 37 Average 46 | 1 19 14 123 51 Influence Increases 823 | 20 75 171 227 330 Destroy 0b10 Robot/C 440 | . 60 80 120 180 Destroy 0b10 Robot/NC 50 | 20 5 10 5 10 Destroy Leader 102 | . 10 30 20 42 Successful Hack 1 | . . 1 . . Disable Machine 120 | . . 15 60 45 Destroy Structure 35 | . . 5 22 8 Lose Combat Pursuer 75 | . . 30 . 45 Influence Decreases 686 | 15 55 170 156 290 Entered New Map 94 | . 2 15 17 60 Time Decay 499 | 15 53 142 129 160 Lost Part 93 | . . 13 10 70 Squads Dispatched 3 | . 1 . . 2 Investigation . | . . . . . Extermination . | . . . . . Reinforcement 2 | . 1 . . 1 Assault . | . . . . . Garrison 1 | . . . . 1 Intercept . | . . . . . Searches Triggered . | . . . . . Construction Impeded . | . . . . . Haulers Reinforced . | . . . . . Active Scanning Responses . | . . . . . Cargo Convoy Interrupts . | . . . . . Stealth | -11 -10 -9 -9 -8 --------- Run | Yrd Mat Mat Min Mat Distress Signals 3 | . . 2 . 1 Communications Jammed . | . . . . . Distress Signals . | . . . . . Times Spotted 39 | . 4 9 5 21 Peak Tracking Total 6 | . 2 4 3 6 Tactical Retreats 3 | . . 2 . 1 Traps | -11 -10 -9 -9 -8 ------- Run | Yrd Mat Mat Min Mat Traps Triggered . | . . . . . Indirectly . | . . . . . Trap Hack Attempts . | . . . . . Triggered . | . . . . . Disarmed . | . . . . . Reprogrammed . | . . . . . Reused . | . . . . . Traps Extracted . | . . . . . Installed . | . . . . . Triggered . | . . . . . Machines | -11 -10 -9 -9 -8 ---------- Run | Yrd Mat Mat Min Mat Machines Disabled 8 | . . 1 4 3 Max in Single Turn 4 | . . 1 4 1 Machines Repaired . | . . . . . Machines Dismantled . | . . . . . Machines Sabotaged . | . . . . . Overloaded Fab Kills . | . . . . . Hacking | -11 -10 -9 -9 -8 --------- Run | Yrd Mat Mat Min Mat Machines Accessed 1 | . . 1 . . Terminals . | . . . . . Fabricators . | . . . . . Repair Stations . | . . . . . Recycling Units . | . . . . . Scanalyzers 1 | . . 1 . . Garrison Access . | . . . . . Total Hacks 5 | . . 5 . . Successful 4 | . . 4 . . Failed . | . . . . . Catastrophic . | . . . . . Database Lockouts 1 | . . 1 . . Manual . | . . . . . Terminals . | . . . . . Fabricators . | . . . . . Repair Stations . | . . . . . Recycling Units . | . . . . . Scanalyzers 5 | . . 5 . . Garrison Access . | . . . . . Terminal Hacks . | . . . . . Fabricator Hacks . | . . . . . Repair Station Hacks . | . . . . . Recycling Unit Hacks . | . . . . . Scanalyzer 4 | . . 4 . . Insert Component 1 | . . 1 . . Analyze 2 | . . 2 . . Retrieve Study 1 | . . 1 . . Garrison Access Hacks . | . . . . . Unauthorized Hacks . | . . . . . Terminals . | . . . . . Fabricators . | . . . . . Repair Stations . | . . . . . Recycling Units . | . . . . . Scanalyzers . | . . . . . Garrison Access . | . . . . . Data Cores Recovered . | . . . . . Used . | . . . . . Hacking Detections 1 | . . 1 . . Full Trace Events 1 | . . 1 . . Feedback Events . | . . . . . Feedback Blocked . | . . . . . Robot Schematics Acquired . | . . . . . Robots Built . | . . . . . Authchips . | . . . . . Time . | . . . . . Total Robot Build Rating . | . . . . . Part Schematics Acquired 1 | . . 1 . . Parts Built . | . . . . . Authchips . | . . . . . Time . | . . . . . Total Part Build Rating . | . . . . . Part Studies Acquired 1 | . . 1 . . Parts Repaired . | . . . . . Time . | . . . . . Parts Recycled . | . . . . . Recycled Matter . | . . . . . Retrieved Matter . | . . . . . Retrieved Components . | . . . . . Parts Scanalyzed 1 | . . 1 . . Part Schematics Acquired 1 | . . 1 . . Parts Damaged . | . . . . . Bothacking | -11 -10 -9 -9 -8 ------------ Run | Yrd Mat Mat Min Mat Used RIF Installer . | . . . . . Robots Hacked . | . . . . . Non-combat . | . . . . . Combat . | . . . . . Robot Hacks Applied . | . . . . . Relay Couplers Released . | . . . . . Fabnet Peak Effective % . | . . . . . Robots Rewired . | . . . . . Allies Hacked . | . . . . . Hacks Repelled . | . . . . . Allies | -11 -10 -9 -9 -8 -------- Run | Yrd Mat Mat Min Mat Total Allies . | . . . . . Largest Group . | . . . . . Highest-Rated Group . | . . . . . Highest-Rated Ally . | . . . . . Total Orders . | . . . . . Ally Attacks . | . . . . . Total Damage . | . . . . . Kills . | . . . . . Allies Corrupted . | . . . . . Allies Melted . | . . . . . Intel | -11 -10 -9 -9 -8 ------- Run | Yrd Mat Mat Min Mat Active Infowar (turns) 737 | 12 159 235 . 331 Terrain 737 | 12 159 235 . 331 Robot Analysis Total . | . . . . . Derelict Logs Recovered 1 | . . . 1 . Drone Launches . | . . . . . Drone Recoveries . | . . . . . Exploration | -11 -10 -9 -9 -8 ------------- Run | Yrd Mat Mat Min Mat Turns Passed 1237 | 106 159 381 260 331 Spaces Moved 905 | 61 121 325 171 227 Core 2 | 1 . . . 1 Treads . | . . . . . Legs . | . . . . . Wheels 896 | 60 121 325 171 219 Hover . | . . . . . Flight 7 | . . . . 7 Fastest Speed 50 | 50 100 85 82 82 Average Speed 92 | 99 100 95 83 87 Slowest Speed 350 | 100 100 100 85 350 Overloaded Moves . | . . . . . Propulsion Burnouts . | . . . . . Robots Hopped . | . . . . . Potential Cave-ins . | . . . . . Cave-ins Triggered . | . . . . . Exploration Rate (%) 24 | 4 21 30 40 28 Regions Visited 4 Branch Regions 1 Pre-discovered Areas . | . . . . . Known Exits Taken . | . . . . . Unknown Exits Taken 4 | 1 1 1 1 . Scrap Searched 2 | . . . 2 . Spaces Dug . | . . . . . Terrain Destroyed 35 | . . 5 22 8 Melee . | . . . . . Projectile 19 | . . 5 6 8 AOE 16 | . . . 16 . Terrain Rammed . | . . . . . Walls Destroyed . | . . . . . Machines Disabled . | . . . . . Actions | -11 -10 -9 -9 -8 --------- Run | Yrd Mat Mat Min Mat Total 1154 | 85 136 364 266 303 Wait 82 | . . . 82 . Move 901 | 60 120 324 170 227 Hop . | . . . . . Pick Up 34 | 8 2 10 . 14 Fast Attach 5 | . . 3 1 1 Attach 20 | 6 1 3 . 10 Detach . | . . . . . Swap 8 | . 1 3 1 3 Drop 22 | . 1 6 1 14 Fire 82 | 11 11 15 11 34 Melee . | . . . . . Ram . | . . . . . Kick . | . . . . . Crush . | . . . . . Escape Stasis . | . . . . . Rewire . | . . . . . Trap . | . . . . . Miscellaneous . | . . . . . Route ------- -11/Scrapyard -10/Materials -9/Materials -9/Mines -8/Materials History --------- Turn | Location | Event 8 | -11/Scrapyard | Discovered new exit (range 15) 107 | -11/Scrapyard | Entered Materials 158 | -10/Materials | Discovered new exit (range 15) 266 | -10/Materials | Entered another Materials area 266 | -9/Materials | Evolved 2 slots: Propulsion x2 315 | -9/Materials | Build established: Mutant 549 | -9/Materials | Central database locked down 639 | -9/Materials | Discovered new exit (range 8) 647 | -9/Materials | Entered Mines 901 | -9/Mines | Learned Materials terminal intel 905 | -9/Mines | Discovered new exit (range 4) 907 | -9/Mines | Entered Materials 907 | -8/Materials | Evolved 2 slots: Power x1, Utility x1 908 | -8/Materials | Loaded intel: 12 terminal locations 1091 | -8/Materials | Build established: Scavenger-Mutant 1181 | -8/Materials | Garrison activated, responded to threat 1238 | -8/Materials | Self-destructed Last Messages --------------- K-01 Serf collects debris. U-05 Engineer builds a Wall. K-01 Serf collects debris. Imp. Weapon Shielding destroyed. B-36 Bruiser destroyed. K-01 Serf collects debris. R-06 Scavenger collects Lgt. Assault Rifle. G-47 Trooper destroyed. U-05 Engineer destroyed. R-06 Scavenger collects Flight Unit. Assault Cannon destroyed. K-01 Serf collects debris. G-47 Trooper knocked back. K-01 Serf collects debris. Com. Wheel+ destroyed. C-30 ARC bursts open, deploying its payload. G-50 Soldier unfolds itself. G-47 Trooper unfolds itself. G-47 Trooper knocked back. K-01 Serf collects debris. Map ----- +----------------------------------------------------+ | ??????????#####?????????????????????????????? | | ??????????# ?########????????????????????? | | ??????????# """ # #?????????????????????? | | ??????????# """ # #############????????#? | | ??????????# """ + " #????#????? | | ??????????# # ### #?????????? | | ??????????# # #?# #??####???? | | ??????????# ! =?### ###?# #? #??? | | ??????????#####???# #???# " #?""" #??? | | ??????????????????# #??## "" # """ #??? | | ??????????????#???# #??# "" # """ #??? | | ??????????????#####+#### """ + #??? | | ??????????????# #t "" # =#??? | | ??????????????# # """ ##########? | | ??????????????# # """ #??? !#? | | ??????????????# # "" #?"? #? | | ??????????????# + " #""" #? | | ??????????????# # % #""" #? | | ???????????""?# # # #? | | ???????????T"?# # % %" #""" #? | | ?????????? "" # # "k #""" ?? | | ??????????????########## "" #""" ???? | | ???????????????????????# "" # ?????? | | ????????????????????#??# "" ##+###+???? | | ??????????#????????????# """ # ???? | | ??????????????????? ???# @ " # ???? | | ???????????????????????# % " # ???? | | ???????????????????????# % " # ???? | | ????????????? ?????????; % % #### # ?#?? | | ????????????""T""???#?##=% % ####+# ???? | | ????????????"""""??????og=% % # # #??? | | ??????????????????????## = % # # #??? | | ??????????????????????##gs% %# # #??? | | ????????????#??#???????# gg # # #??? | | ????????T??????#???#####% # # #??? | | ???????""??????????? = # # #??? | | ??????????????????#?## %= # # #??? | | ?????????????????????# =[" # + #??? | | ?????????????????????# % %%"" # # #??? | | ????????????????????## ###### #??? | | ??????????????????? #??? | | ????????????????????#####?## #######??? | | ????????????????????# ?# #????????? | | ????????????????????# ?# #????????? | | ????????????????"???# """ # #######??? | | ????????????????T???# G" # #??? | | ????????????????"???# """ / #??? | | ????????????????????# # #??? | | ????????????????????######## ### #??? | | ????????????????????# ??# % #???#??? | +----------------------------------------------------+ Best States ------------- Heat Dissipation 31 Energy Generation 15 Energy Capacity 275 Matter Stores 300 Matter Capacity 300 Sight Range 16 Terrain Scan Range 16 Terrain Scan Density 10 Weapon Shielding 66 Evasion (%) 50 Targeting Accuracy 6 Item Schematics ----------------- Assault Cannon | -9/Materials | Scanalyzed Robot Schematics ------------------ None Fabricated ------------ Nothing Repaired ---------- Nothing Studied --------- Com. Wheel | -9/Materials | Hacked Alien Tech Used ----------------- None Achievements -------------- None Challenges ------------ None Game ------ Seed JunkXenonDriver Manual? 0 Play Time 00:11:30 Cumulative 14.4 hours Start 2026.08.06 @ 16:40:30 End 2026.08.06 @ 16:51:38 Sessions 1 Manual Loads 0 Difficulty Rogue Special Mode None Game No. 51 Rogue 51 Adventurer 0 Explorer 0 Win Type - Total 0 Types 0/0/0/0/0/0/0/0/0/0 Lore% 14 Gallery% 21 Achievement% 16 Wizard Run 0 Options --------- Layout 1 ASCII 0 Keyboard 0 Movement Mouse Keybinds 0 Fullscreen 1 Font 24/Smallcaps Map View 50x35 Zoom Use 0% Tactical HUD 0 Map Filters NONE Filters NONE Steam 1 RUN: c50fb8f1-0ab1-4147-9784-fa5a8e49f04d